Workbook

Sheet Summary
E1: Docket No. 20200139-WS
E2: Exhibit ACC-3
E3: Schedule 1
E4: Page 1 of 1
B7: UTILITIES, INC. OF FLORIDA - SEWER
B8: TEST YEAR ENDING DECEMBER 31, 2019
B9: REVENUE REQUIREMENT SUMMARY
C13: Company | D13: Recommended | E13: Recommended
C14: Claim | D14: Adjustment | E14: Position
C15: (A)
A16: 1 | B16: Pro Forma Rate Base | C16: =+'Rate Base'!C26 -> 89747182 | D16: =+E16-C16 -> -15352525 | E16: =+'Rate Base'!F26 -> 74394657 | F16: (B)
A18: 2 | B18: Required Cost of Capital | C18: =+C20/C16 -> 0.07889077787 | D18: =E18-C18 -> -0.0116330151 | E18: =+ROR!G27 -> 0.06725776277 | F18: (C)
A20: 3 | B20: Required Return | C20: 7080225 | D20: =E20-C20 -> -2076606.808 | E20: =(E16*E18) -> 5003618.192
A22: 4 | B22: Operating Income @ Present Rates | C22: 2290839 | D22: =+E22-C22 -> 854738.4338 | E22: =+Income!C34 -> 3145577.434 | F22: (D)
A24: 5 | B24: Operating Income Deficiency | C24: =+C20-C22 -> 4789386 | D24: =D20-D22 -> -2931345.242 | E24: =E20-E22 -> 1858040.758
A26: 6 | B26: Revenue Multiplier | C26: =+C28/C24 -> 1.363302728 | D26: =+C26 -> 1.363302728 | E26: =+'Rev Mul'!D27 -> 1.387315405 | F26: (E)
A28: 7 | B28: Required Revenue Increase | C28: 6529383 | D28: =E28-C28 -> -3951694.432 | E28: =E24*E26 -> 2577688.568
B35: Sources:
B36: (A) UIF Filing, Schedule B-2, Page 1.
B37: (B) Exhibit ACC-3, Schedule 3.
B38: (C) Exhibit ACC-3, Schedule 2.
B39: (D) Exhibit ACC-3, Schedule 9.
B40: (E) Exhibit ACC-3, Schedule 27.
A55: =+'Income Tax'!D23 -> 0.2452182
A56: ='Rev Mul'!D19/'Rev Mul'!#REF! -> 
F313: =B309+#REF!-C309+D308-E313 -> 
F314: =B310+#REF!-C310+D309-E314 -> 

Sheet ROR
F1: Docket No. 20200139-WS
F2: Exhibit ACC-3
F3: Schedule 2
F4: Page 1 of 1
B7: =+Summary!B7 -> UTILITIES, INC. OF FLORIDA - SEWER
B8: =+Summary!B8 -> TEST YEAR ENDING DECEMBER 31, 2019
B9: REQUIRED COST OF CAPITAL
D14: Capital | E14: Cost | G14: Weighted
D15: Structure (%) | E15: Rate (%) | G15: Cost (%)
D16: (A) | E16: (B)
A19: 1. | B19: Long-Term Debt | D19: =0.9125*0.5 -> 0.45625 | E19: 0.0578 | G19: =+D19*E19 -> 0.02637125
A20: 2 | B20: Short-Term Debt | D20: =0.05*91.25% -> 0.045625 | E20: 0.0404 | G20: =+D20*E20 -> 0.00184325
A21: 3 | B21: Common Equity | D21: =91.25*0.45% -> 0.410625 | E21: 0.095 | F21: (C) | G21: 0.039009375
A22: 4 | B22: Customer Deposits | D22: =248501/146661161 -> 0.001694388605 | E22: 0.02 | G22: 3.38877721e-05
A23: 5 | B23: Tax Credits - Zero Cost | D23: =73443/146661161 -> 0.0005007665254 | E23: 0 | G23: 0
A24: 6 | B24: Accumulated Deferred Income Taxes | D24: =7156450/146661161 -> 0.048795809 | E24: 0 | G24: 0
A25: 7 | B25: Other Deferred Tax Liability - TCIA | D25: =5353825/146661161 -> 0.03650472261 | E25: 0 | G25: 0
A27: 8 | B27: Total Cost of Capital | D27: =SUM(D19:D25) -> 0.9999956867 | G27: =SUM(G19:G25) -> 0.06725776277
B31: Sources:
B32: (A) Derived from UIF Filing, Schedule D-1, page 1, and recommendations of Mr. Garrett
B33: regarding percentages of long-term debt, short-term debt, and common equity.
B34: (B) Cost rates per UIF Filing, Schedule D-1, page 1 except for cost of equity.
B35: (C) Cost of equity cost rate per Testimony of Mr. Garrett.
B44: =+D19/($D$19+$D$20+$D$21) -> 0.5 | C44: =+B44*F19 -> 0
B45: =+D20/($D$19+$D$20+$D$21) -> 0.05 | C45: =+B45*F20 -> 0
B46: =+D21/($D$19+$D$20+$D$21) -> 0.45 | C46: =+B46*F21 -> 
C47: =SUM(C44:C46) -> 

Sheet Rate Base
E1: Docket No. 20200139-WS
E2: Exhibit ACC-3
E3: Schedule 3
E4: Page 1 of 1
B7: =+Summary!B7 -> UTILITIES, INC. OF FLORIDA - SEWER
B8: =+Summary!B8 -> TEST YEAR ENDING DECEMBER 31, 2019
B9: RATE BASE SUMMARY
C13: Company | D13: Test Year | F13: Recommended
C14: Claim | D14: Adjustment | F14: Position
C15: (A)
A16: 1 | B16: Utility Plant in Service | C16: 154552247 | D16: =+'Gross Plant'!C17 -> -7125593 | E16: (B) | F16: =+C16+D16 -> 147426654
A17: 2 | B17: Utility Land and Land Rights | C17: 583043 | D17: 0 | F17: =+C17+D17 -> 583043
A18: 3 | B18: Less: Non -Used and Useful Plant | C18: -928928 | D18: =+'Used and Useful'!F17 -> -1536239 | E18: (C) | F18: -2465167
A20: 4 | B20: Accumulated Depreciation | C20: -54270966 | D20: ='Acc Dep'!C17 -> -3488242 | E20: (D) | F20: =+C20+D20 -> -57759208
A21: 5 | B21: Contributions in Aid of Construction | C21: -44243811 | D21: =CIAC!C12 -> -419575 | E21: (E) | F21: =+C21+D21 -> -44663386
A22: 6 | B22: Accumulated Amortization of CIAC | C22: 28503115 | D22: =+CIAC!C14 -> 419575 | E22: (E) | F22: =+C22+D22 -> 28922690
A23: 7 | B23: Advances for Construction | C23: 1315 | D23: 0 | F23: =+C23+D23 -> 1315
A24: 8 | B24: Working Capital Allowance | C24: 5551167 | D24: =+'Working Capital'!E19 -> -3202451 | E24: (F) | F24: =+C24+D24 -> 2348716
A26: 9 | B26: Total Rate Base | C26: =SUM(C16:C24) -> 89747182 | D26: =SUM(D16:D24) -> -15352525 | F26: =SUM(F16:F24) -> 74394657
B30: Sources:
B31: (A)UIF Filing, Schedule A-2.
B32: (B) Exhibit ACC-3, Schedule 4.
B33: (C) Exhibit ACC-3, Schedule 5.
B34: (D) Exhibit ACC-3, Schedule 6.
B35: (E) Exhibit ACC-3, Schedule 7.
B36: (F) Exhibit ACC-3, Schedule 8.

Sheet Gross Plant
C1: Docket No. 20200139-WS
C2: Exhibit ACC-3
C3: Schedule 4
C4: Page 1 of 2
B7: =+'Rate Base'!B7 -> UTILITIES, INC. OF FLORIDA - SEWER
B8: =+'Rate Base'!B8 -> TEST YEAR ENDING DECEMBER 31, 2019
B9: UTILITY PLANT-IN-SERVICE
A13: 1 | B13: Adjustments to Pro Forma Additions | C13: -11137042 | D13: (A)
A15: 2 | B15: Adjustments to Pro Forma Retirements | C15: 4011449 | D15: (A)
A17: 3 | B17: Total Pro Forma Adjustments to Utility Plant | C17: =+C13+C15 -> -7125593
B21: Sources:
B22: (A) Exhibit ACC-3, Schedule 4, page 2 of 2.

Sheet Plt Adj WP
M1: Docket No. 20200139-WS
M2: Exhibit ACC-3
D3: UTILITIES, INC. OF FLORIDA - SEWER | M3: Schedule 4
D4: TEST YEAR ENDING DECEMBER 31, 2019 | M4: Page 2 of 2
D5: UTILITY PLANT-IN-SERVICE ADDITIONS
A7: Docket# 20200139-WS
I8: Base Project | J8: Cost Per | K8: Accumulated | L8: Book | N8: Retirement | O8: CIAC
A9: Job Description | B9: Co | C9: PCF# | D9: County | E9: System | F9: Retirement? | G9: CIAC? | H9: System | I9: Cost | J9: RR Schedule | K9: Depreciation | L9: Depreciation | M9: Retirement | N9: Depreciation | O9: Amortization | V9: PCF#
A11: Engineering WWTP Master Plan | B11: 259 | C11: 6 | D11: Pasco | E11: Labrador | F11: No | H11: Sewer | I11: 40636.06 | J11: 40636 | K11: 2257.56 | L11: 2257.56 | V11: 6
A12: Barrington WWTP Cap Improvements | B12: 251 | C12: 13 | D12: Lake | E12: LUSI | F12: No | H12: Sewer | I12: 380000 | J12: 396710 | K12: 22039.42 | L12: 22039.42 | V12: 13
A13: PDR & Master Lift Station | B13: 250 | C13: 14 | D13: Pinellas | E13: Mid-County | F13: Yes | G13: No | H13: Sewer | I13: 360000 | J13: 382847 | K13: 8000 | L13: 8000 | M13: 70866.14173 | N13: 1575 | V13: 14
A14: PDR & Master Lift Station | B14: 250 | C14: 14 | D14: Pinellas | E14: Mid-County | F14: Yes | G14: No | H14: Sewer | I14: 84000 | J14: 89331 | K14: 2800 | L14: 2800 | M14: 30094.48819 | N14: 1003 | V14: 14
A15: PDR & Master Lift Station | B15: 250 | C15: 14 | D15: Pinellas | E15: Mid-County | F15: Yes | G15: No | H15: Sewer | I15: 183600 | J15: 195252 | K15: 6120 | L15: 6120 | M15: 58781.4433 | N15: 1959 | V15: 14
A16: PDR & Master Lift Station | B16: 250 | C16: 14 | D16: Pinellas | E16: Mid-County | F16: Yes | G16: No | H16: Sewer | I16: 512515 | J16: 545041 | K16: 17083.83 | L16: 17083.83 | M16: 200856.2542 | N16: 6695 | V16: 14
A17: PDR & Master Lift Station | B17: 250 | C17: 14 | D17: Pinellas | E17: Mid-County | F17: Yes | G17: No | H17: Sewer | I17: 626000 | J17: 665728 | K17: 34777.78 | L17: 34777.78 | M17: 246028.2318 | N17: 13668 | V17: 14
A18: Curlew Creek I&I Improvements | B18: 250 | C18: 16 | D18: Pinellas | E18: Mid-County | F18: No | H18: Sewer | I18: 635000 | J18: 664201 | K18: 14760.01 | L18: 14760.01 | V18: 16
A19: MC Headworks Improvements | B19: 250 | C19: 17 | D19: Pinellas | E19: Mid-County | F19: Yes | G19: No | H19: Sewer | I19: 3045500 | J19: 3186839 | K19: 177046.64 | L19: 177046.64 | M19: 1558186.336 | N19: 86566 | V19: 17
A20: Eng Relocate LS 10 FM | B20: 250 | C20: 18 | D20: Pinellas | E20: Mid-County | F20: Yes | G20: No | H20: Sewer | I20: 56000 | J20: 58139 | K20: 1937.95 | L20: 1937.95 | M20: 20062.99213 | N20: 669 | V20: 18
A21: L/S RTU Installation - 2020091 | B21: 256 | C21: 20 | D21: Charlotte | E21: Sandalhaven | F21: No | H21: Sewer | I21: 130000 | J21: 135490 | K21: 13549.02 | L21: 13549.02 | V21: 20
A22: Const - Wekiva WWTF Headworks | B22: 255 | C22: 23 | D22: Seminole | E22: Sanlando | F22: Yes | G22: No | H22: Sewer | I22: 2750000 | J22: 2901907 | K22: 161217.05 | L22: 161217.05 | M22: 1406998.005 | N22: 78167 | V22: 23
A23: ENG - Wekiva WWTF Headworks | B23: 255 | C23: 23 | D23: Seminole | E23: Sanlando | F23: No | H23: Sewer | I23: 186715 | J23: 198117 | K23: 11006.52 | L23: 11006.52 | V23: 23
A24: ENG F5/C1/L2 FM | B24: 255 | C24: 26 | D24: Seminole | E24: Sanlando | F24: No | H24: Sewer | I24: 194500 | J24: 202637 | K24: 6754.58 | L24: 6754.58 | V24: 26
A25: E.E. Williamson Utility Relocations | B25: 255 | C25: 28 | D25: Seminole | E25: Sanlando | F25: Yes | G25: Yes | H25: Sewer | I25: 111025 | J25: 115714 | K25: 3857.13 | L25: 3857.13 | M25: 39776.67323 | N25: =+O25 -> 1326 | O25: 1326 | V25: 28
A26: Lift Station Mechanical Rehab | B26: 255 | C26: 29 | D26: Seminole | E26: Sanlando | F26: Yes | G26: Yes | H26: Sewer | I26: 540000 | J26: 560469 | K26: 18682.3 | L26: 18682.3 | M26: 211627.7129 | N26: =+O26 -> 7054 | O26: 7054 | V26: 29
A27: UIF CIP Analysis/Modeling | B27: 255 | C27: 30 | D27: Seminole | E27: Sanlando | F27: No | H27: Sewer | I27: 83500 | J27: 93492 | K27: 3116.4 | L27: 3116.4 | N27: 0 | V27: 30
A28: FM / GSM Relocation | B28: 241 | C28: 33 | D28: Pinellas | E28: Tierra Verde | F28: Yes | G28: Yes | H28: Sewer | I28: 338864.8979 | J28: 374656 | K28: 12488.52 | L28: 12488.52 | M28: 121404.3532 | N28: 4047 | O28: 4047 | V28: 33
A29: FM / GSM Relocation | B29: 241 | C29: 33 | D29: Pinellas | E29: Tierra Verde | F29: Yes | G29: Yes | H29: Sewer | I29: 172219.4076 | J29: 190409 | K29: 4231.31 | L29: 4231.31 | M29: 33901.45819 | N29: 753 | O29: 753 | V29: 33
A30: FM / GSM Relocation | B30: 241 | C30: 33 | D30: Pinellas | E30: Tierra Verde | F30: Yes | G30: Yes | H30: Sewer | I30: 40182 | J30: 44426 | K30: 1480.88 | L30: 1480.88 | M30: 12864.68385 | N30: 429 | O30: 429 | V30: 33
A31: Trucks for New Employees | E31: ALL | J31: 95000 | L31: 15833.33 | N31: 0
I33: =SUM(I11:I31) -> 10470257.37 | J33: =SUM(J11:J31) -> 11137041 | K33: =SUM(K11:K31) -> 523206.9 | L33: 539040.23 | M33: =SUM(M11:M31) -> 4011448.774 | N33: =SUM(N11:N31) -> 203911 | O33: =SUM(O11:O31) -> 13609

Sheet Used and Useful
F1: Docket No. 20200139-WS
F2: Exhibit ACC-3
F3: Schedule 5
F4: Page 1 of 1
B7: =+'Gross Plant'!B7 -> UTILITIES, INC. OF FLORIDA - SEWER
B8: =+'Gross Plant'!B8 -> TEST YEAR ENDING DECEMBER 31, 2019
B9: UTILITY PLANT-IN-SERVICE - USED AND USEFUL
A13: 1 | B13: Adjustment Per Interim Schedules | F13: 2465167 | G13: (A)
A15: 2 | B15: Company Claim | F15: 928928 | G15: (B)
A17: 3 | B17: Recommended Net Reduction | F17: =+F15-F13 -> -1536239
B23: Sources:
B24: (A) UIF Interim Filing, Schedule A-7.
B25: (B) UIF Filing, Schedule A-2.

Sheet Acc Dep
C1: Docket No. 20200139-WS
C2: Exhibit ACC-3
C3: Schedule 6
C4: Page 1 of 1
B7: =+'Rate Base'!B7 -> UTILITIES, INC. OF FLORIDA - SEWER
B8: =+'Rate Base'!B8 -> TEST YEAR ENDING DECEMBER 31, 2019
B9: ACCUMULATED DEPRECIATION
A13: 1 | B13: Adjustments Related to Additions | C13: 523207 | D13: (A)
A15: 2 | B15: Adjustments Related to Retirements | C15: -4011449 | D15: (A)
A17: 3 | B17: Total Pro Forma Adjustments to Acc. Dep. | C17: =+C13+C15 -> -3488242
B21: Sources:
B22: (A) Exhibit ACC-3, Schedule 4, page 2 of 2.

Sheet CIAC
C1: Docket No. 20200139-WS
C2: Exhibit ACC-3
C3: Schedule 7
C4: Page 1 of 1
B7: =+'Gross Plant'!B7 -> UTILITIES, INC. OF FLORIDA - SEWER
B8: =+'Gross Plant'!B8 -> TEST YEAR ENDING DECEMBER 31, 2019
B9: CONTRIBUTIONS IN AID OF CONSTRUCTION
A12: 1 | B12: Retirement Adjustments Associated with CIAC | C12: =-(39777+211628+121404+33901+12865) -> -419575 | D12: (A)
A14: 2 | B14: Associated Accumulated Amortization of CIAC | C14: =-C12 -> 419575 | D14: (A)
B17: Sources:
B18: (A) Exhibit ACC-3, Schedule 4, page 2 of 2.

Sheet Working Capital
F1: Docket No. 20200139-WS
F2: Exhibit ACC-3
F3: Schedule 8
F4: Page 1 of 1
B7: =+'Gross Plant'!B7 -> UTILITIES, INC. OF FLORIDA - SEWER
B8: =+'Gross Plant'!B8 -> TEST YEAR ENDING DECEMBER 31, 2019
B9: WORKING CAPITAL ADJUSTMENTS
A13: 1 | B13: Presumed Cash Balance | E13: -3061123 | F13: (A)
A15: 2 | B15: Chlorine Dioxide Pilot Study | E15: -52000 | F15: (A)
A17: 3 | B17: Smoke Testing/I&I Investigations | E17: =-61847-27481 -> -89328 | F17: (A)
A19: 4 | B19: Recommended Adjustments | E19: =SUM(E13:E17) -> -3202451
B23: Sources:
B24: (A) UIF Filing, Schedule A-3, page 5.

Sheet Income
C1: Docket No. 20200139-WS
C2: Exhibit ACC-3
C3: Schedule 9
C4: Page 1 of 1
B7: =+Summary!B7 -> UTILITIES, INC. OF FLORIDA - SEWER
B8: =+Summary!B8 -> TEST YEAR ENDING DECEMBER 31, 2019
B9: OPERATING INCOME SUMMARY
D12: Schedule No.
A13: 1 | B13: Company Claim | C13: =+Summary!C22 -> 2290839 | D13: 1
B15: Recommended Adjustments:
A17: 2 | B17: Salary and Wage Increase Expense | C17: =+'Emp Increase'!D29 -> 20002.02716 | D17: 10
A18: 3 | B18: Additional Employees Expense | C18: =+'New Emp'!D23 -> 74422.99504 | D18: =1+D17 -> 11
A19: 4 | B19: Severance Expense | C19: =+Severance!D21 -> 20590.59846 | D19: 12
A20: 5 | B20: Incentive Compensation Expense | C20: =+'Inc Comp'!D33 -> 71609.69433 | D20: 13
A21: 6 | B21: Payroll Tax Expense | C21: =+'Payroll Tax'!D24 -> 16097.34065 | D21: 14
A22: 7 | B22: Non-Qualified Retirement Plan Expense | C22: =+'Non Qual'!D25 -> 19809.47785 | D22: 15
A23: 8 | B23: Truck Fleet Expense | C23: =+Truck!D16 -> 4801.921812 | D23: 16
A24: 9 | B24: Lobbying Expense | C24: =+Lobbying!D20 -> 16554.47992 | D24: 17
A25: 10 | B25: Holiday Party Expense | C25: =+'Holiday Party'!D20 -> 1834.730694 | D25: 18
A26: 11 | B26: Depreciation Expense - Plant | C26: =+'Dep Plant'!D22 -> 263221.0954 | D26: 19
A27: 12 | B27: Depreciation Expense - Non Used and Useful | C27: =+'Dep Used Useful'!D20 -> 58186.88374 | D27: 20
A28: 13 | B28: Property Tax Expense - Plant | C28: =+'Property Tax Plant'!D20 -> 125513.2709 | D28: 21
A29: 14 | B29: Property Tax Expense - Non Used and Useful | C29: =+'Prop Tax Used Useful'!D22 -> 16518.61445 | D29: 22
A30: 15 | B30: Excess Deferred Income Tax Amortization | C30: =+EDIT!D25 -> 201846.3403 | D30: 23
A31: 16 | B31: State Income Tax Expense | C31: =+SIT!D24 -> -397.3466318 | D31: 24
A32: 17 | B32: Interest Synchronization | C32: ='Int Syn'!D26 -> -55873.69028 | D32: 25
A34: 18 | B34: Operating Income | C34: =SUM(C13:C33) -> 3145577.434

Sheet Emp Increase
D1: Docket No. 20200139-WS
D2: Exhibit ACC-3
D3: Schedule 10
D4: Page 1 of 1
B7: =+Summary!B7 -> UTILITIES, INC. OF FLORIDA - SEWER
B8: =+Summary!B8 -> TEST YEAR ENDING DECEMBER 31, 2019
B9: SALARY AND WAGE INCREASE EXPENSE
A13: 1 | B13: Salaries and Wages | D13: 2613825 | E13: (A)
A15: 2 | B15: Salaries and Wages Officers | D15: 198741 | E15: (A)
A17: 3 | B17: Pensions and Benefits | D17: 720887 | E17: (A)
A19: 4 | B19: Total Test Year Costs | D19: =SUM(D13:D17) -> 3533453
A21: 5 | B21: Increase @ 3.0% | D21: =0.03*D19 -> 106003.59 | E21: (B)
A23: 6 | B23: Company Claim | D23: 132504 | E23: (C)
A25: 7 | B25: Recommended Adjustment | D25: =+D23-D21 -> 26500.41
A27: 8 | B27: Income Taxes @ | C27: =+'New Emp'!C21 -> 0.2452182 | D27: =+D25*C27 -> 6498.382839
A29: 9 | B29: Operating Income Impact | D29: =+D25-D27 -> 20002.02716
B34: Souces:
B35: (A) UIF Filing, Schedule B-6, page 1.
B36: (B) Line 4 X .03.
B37: (C) UIF Filing, Schedule B-3, page 2.

Sheet New Emp
D1: Docket No. 20200139-WS
D2: Exhibit ACC-3
D3: Schedule 11
D4: Page 1 of 1
B7: =+Summary!B7 -> UTILITIES, INC. OF FLORIDA - SEWER
B8: =+Summary!B8 -> TEST YEAR ENDING DECEMBER 31, 2019
B9: ADDITIONAL EMPLOYEES EXPENSE
A13: 1 | B13: Salaries and Wages | D13: 67174 | E13: (A)
A15: 2 | B15: Employee Pensions and Benefits | D15: 29669 | E15: (A)
A17: 3 | B17: Telephone Expense | D17: 1759 | E17: (A)
A19: 4 | B19: Recommended Adjustment | D19: =SUM(D13:D17) -> 98602
A21: 5 | B21: Income Taxes @ | C21: =+'Income Tax'!D23 -> 0.2452182 | D21: =+D19*C21 -> 24179.00496
A23: 6 | B23: Operating Income Impact | D23: =+D19-D21 -> 74422.99504
B28: Souces:
B29: (A) Company Filing, Schedule B-3, page 2.

Sheet Severance
D1: Docket No. 20200139-WS
D2: Exhibit ACC-3
D3: Schedule 12
D4: Page 1 of 1
B7: =+Summary!B7 -> UTILITIES, INC. OF FLORIDA - SEWER
B8: =+Summary!B8 -> TEST YEAR ENDING DECEMBER 31, 2019
B9: SEVERANCE EXPENSE
A13: 1 | B13: Severance Claim | D13: 57000 | E13: (A)
A15: 2 | B15: Allocation to Sewer (%) | D15: =1-52.14% -> 0.4786 | E15: (A)
A17: 3 | B17: Allocation to Sewer ($) | D17: =+D15*D13 -> 27280.2
A19: 4 | B19: Income Taxes @ | C19: =+'Emp Increase'!C27 -> 0.2452182 | D19: =+D17*C19 -> 6689.60154
A21: 5 | B21: Operating Income Impact | D21: =+D17-D19 -> 20590.59846
B25: Sources:
B26: (A) Response to OPC IRR-15.

Sheet Inc Comp
D1: Docket No. 20200139-WS
D2: Exhibit ACC-3
D3: Schedule 13
D4: Page 1 of 1
B7: =+Summary!B7 -> UTILITIES, INC. OF FLORIDA - SEWER
B8: =+Summary!B8 -> TEST YEAR ENDING DECEMBER 31, 2019
B9: INCENTIVE COMPENSATION EXPENSE
A13: 1 | B13: UIF Expense - Non-Officers | D13: 92500 | E13: (A)
A15: 2 | B15: WSC Expense - Non Officers @ 22% | D15: =45605*0.22 -> 10033.1 | E15: (B)
A17: 3 | B17: WSC/UIF Officers | D17: 244000 | E17: (C)
A19: 4 | B19: CII Incentive Compensation @ 10.3% | D19: =0.1*499345 -> 49934.5 | E19: (D)
A21: 5 | B21: Total Incentive Compensation | D21: =SUM(D13:D19) -> 396467.6
A23: 6 | B23: Recommended Adjustment | D23: 0.5 | E23: (E)
A25: 7 | B25: Total Recommended Adjustment | D25: =+D21*D23 -> 198233.8
A27: 8 | B27: Allocation to Sewer (%) | D27: =1-52.14% -> 0.4786 | E27: (F)
A29: 9 | B29: Allocation to Sewer ($) | D29: =+D25*D27 -> 94874.69668
A31: 10 | B31: Income Taxes @ | C31: =+Summary!A55 -> 0.2452182 | D31: =+C31*D29 -> 23265.00235
A33: 11 | B33: Operating Income Impact | D33: =+D29-D31 -> 71609.69433
B37: Sources:
B38: (A) Response to OPC IRR-17.
B39: (B) Represents 22% of total cost of $45,605, per the response to OPC IRR-17.
B40: (C) Response to OPC IRR-18.
B41: (D) Represents 10.3% (per OPC IRR-18) of amount shown in the response
B42: to OPC IRR-11.
B43: (E) Recommendation of Ms. Crane.
B44: (F) Allocation per the response to OPC IRR-18.

Sheet Payroll Tax
D1: Docket No. 20200139-WS
D2: Exhibit ACC-3
D3: Schedule 14
D4: Page 1 of 1
B7: =+Summary!B7 -> UTILITIES, INC. OF FLORIDA - SEWER
B8: =+Summary!B8 -> TEST YEAR ENDING DECEMBER 31, 2019
B9: PAYROLL TAX EXPENSE
A12: 1 | B12: Salary and Wage Increase Expense Adjustment | D12: =+(('Emp Increase'!D13+'Emp Increase'!D15)/'Emp Increase'!D19)*'Emp Increase'!D25 -> 21093.85696 | E12: (A)
A14: 2 | B14: Additional Employees Expense Adjustment | D14: =+'New Emp'!D13 -> 67174 | E14: (B)
A16: 3 | B16: Severance Expense Adjustment | D16: =+Severance!D17 -> 27280.2 | E16: (C)
A18: 4 | B18: Incentive Compensation Expense Adjustment | D18: =+'Inc Comp'!D29 -> 94874.69668 | E18: (D)
A20: 5 | B20: Total Expense Adjustments | D20: =SUM(D12:D18) -> 210422.7536
A22: 6 | B22: Statutory Payroll Tax Rate | D22: 0.0765
A24: 7 | B24: Recommended Payroll Tax Adjustment | D24: =+D20*D22 -> 16097.34065
A26: 8 | B26: Income Taxes @ | C26: =+[1]Summary!A55 -> 0.2452182 | D26: =+[1]Summary!A55*D24 -> 3947.3609
A28: 9 | B28: Operating Income Impact | D28: =+D24-D26 -> 12149.97975
B32: Sources:
B33: (A) Exhibit ACC-2, Schedule 9 (excludes pensions and benefits).
B34: (B) Derived from Exhibit ACC-2, Schedule 10.
B35: (C) Exhibit ACC-2, Schedule 11.
B36: (D) Exhibit ACC-2, Schedule 12.

Sheet Non Qual
D1: Docket No. 20200139-WS
D2: Exhibit ACC-3
D3: Schedule 15
D4: Page 1 of 1
B7: =+Summary!B7 -> UTILITIES, INC. OF FLORIDA - SEWER
B8: =+Summary!B8 -> TEST YEAR ENDING DECEMBER 31, 2019
B9: NON-QUALIFIED RETIREMENT PLAN EXPENSE
A13: 1 | B13: UIF Non-Qualfied Expense | D13: =21581+5272 -> 26853 | E13: (A)
A15: 2 | B15: WSC Shared Services Non-Qualified Expense | D15: =(96249+30954)*0.22 -> 27984.66 | E15: (B)
A17: 3 | B17: Total Expense Adjustments | D17: =SUM(D13:D15) -> 54837.66
A19: 4 | B19: Allocation to Water (%) | D19: =1-52.14% -> 0.4786 | E19: (C)
A21: 5 | B21: Allocation to Water ($) | D21: =+D17*D19 -> 26245.30408
A23: 6 | B23: Income Taxes @ | C23: =+'Payroll Tax'!C26 -> 0.2452182 | D23: =+C23*D21 -> 6435.826224
A25: 7 | B25: Operating Income Impact | D25: =+D21-D23 -> 19809.47785
B29: Sources:
B30: (A) Response to OPC IRR-11.
B31: (B) Represents 22% allocation of the amounts per the response to
B32: OPC IRR-11.
B33: (C) Allocation per the response to OPC IRR-18.

Sheet Truck
D1: Docket No. 20200139-WS
D2: Exhibit ACC-3
D3: Schedule 16
D4: Page 1 of 1
B7: =+Summary!B7 -> UTILITIES, INC. OF FLORIDA - SEWER
B8: =+Summary!B8 -> TEST YEAR ENDING DECEMBER 31, 2019
B9: TRUCK FLEET EXPENSE
A12: 1 | B12: Recommended Adjustment | D12: 6362 | E12: (A)
A14: 2 | B14: Income Taxes @ | C14: =+Summary!A55 -> 0.2452182 | D14: =+Summary!A55*D12 -> 1560.078188
A16: 3 | B16: Operating Income Impact | D16: =+D12-D14 -> 4801.921812
B22: Sources:
B23: (A) UIF Filing, Schedule B-3, page 2.

Sheet Lobbying
D1: Docket No. 20200139-WS
D2: Exhibit ACC-3
D3: Schedule 17
D4: Page 1 of 1
B7: =+Summary!B7 -> UTILITIES, INC. OF FLORIDA - SEWER
B8: =+Summary!B8 -> TEST YEAR ENDING DECEMBER 31, 2019
B9: LOBBYING EXPENSE
A12: 1 | B12: Lobbying Costs in Filing | D12: 45827 | E12: (A)
A14: 2 | B14: Allocation to Sewer (%) | D14: =1-52.14% -> 0.4786 | E14: (B)
A16: 3 | B16: Allocation to Sewer ($) | D16: =+D12*D14 -> 21932.8022
A18: 4 | B18: Income Taxes @ | C18: =+Summary!A55 -> 0.2452182 | D18: =+Summary!A55*D16 -> 5378.322276
A20: 5 | B20: Operating Income Impact | D20: =+D16-D18 -> 16554.47992
B24: Sources:
B25: (A) Response to OPC IRR-140.
B26: (B) Allocation per the response to OPC IRR-33.

Sheet Holiday Party
D1: Docket No. 20200139-WS
D2: Exhibit ACC-3
D3: Schedule 18
D4: Page 1 of 1
B7: =+Summary!B7 -> UTILITIES, INC. OF FLORIDA - SEWER
B8: =+Summary!B8 -> TEST YEAR ENDING DECEMBER 31, 2019
B9: HOLIDAY PARTY EXPENSE
A12: 1 | B12: Holiday Party Costs in Filing | D12: 5079 | E12: (A)
A14: 2 | B14: Allocation to Sewer (%) | D14: =1-52.14% -> 0.4786 | E14: (B)
A16: 3 | B16: Allocation to Sewer ($) | D16: =+D12*D14 -> 2430.8094
A18: 4 | B18: Income Taxes @ | C18: =+Summary!A55 -> 0.2452182 | D18: =+Summary!A55*D16 -> 596.0787056
A20: 5 | B20: Operating Income Impact | D20: =+D16-D18 -> 1834.730694
B24: Sources:
B25: (A) Response to OPC IRR-38.
B26: (B) Allocation per the response to OPC IRR-38.

Sheet Dep Plant
D1: Docket No. 20200139-WS
D2: Exhibit ACC-3
D3: Schedule 19
D4: Page 1 of 1
B7: =+Summary!B7 -> UTILITIES, INC. OF FLORIDA - SEWER
B8: =+Summary!B8 -> TEST YEAR ENDING DECEMBER 31, 2019
B9: DEPRECIATION EXPENSE - PLANT
A12: 1 | B12: Reduction Related to Plant Additions | D12: 539040 | E12: (A)
A14: 2 | B14: Reduction Related to Retirements | D14: -203911 | E14: (A)
A16: 3 | B16: Reductions to Retirements - CIAC | D16: 13609 | E16: (A)
A18: 4 | B18: Recommended Adjustment | D18: =+D12+D14+D16 -> 348738
A20: 5 | B20: Income Taxes @ | C20: =+'Income Tax'!D23 -> 0.2452182 | D20: =+Summary!A55*D18 -> 85516.90463
A22: 6 | B22: Operating Income Impact | D22: =+D18-D20 -> 263221.0954
B27: Sources:
B28: (A) Exhibit ACC-3, Schedule 4, page 2 of 2.

Sheet Dep Used Useful
D1: Docket No. 20200139-WS
D2: Exhibit ACC-3
D3: Schedule 20
D4: Page 1 of 1
B7: =+Summary!B7 -> UTILITIES, INC. OF FLORIDA - SEWER
B8: =+Summary!B8 -> TEST YEAR ENDING DECEMBER 31, 2019
B9: DEPRECIATION EXPENSE - USED AND USEFUL
A12: 1 | B12: Per Interim Rate Filing (including CIAC Adj) | D12: 160335 | E12: (A)
A14: 2 | B14: Company Claim (including CIAC Adj) | D14: 83244 | E14: (B)
A16: 3 | B16: Recommended Adjustment | D16: =+D12-D14 -> 77091
A18: 4 | B18: Income Taxes @ | C18: =+'Income Tax'!D23 -> 0.2452182 | D18: =+Summary!A55*D16 -> 18904.11626
A20: 5 | B20: Operating Income Impact | D20: =+D16-D18 -> 58186.88374
B25: Sources:
B26: (A) UIF Interim Filing, Schedule B-3, page 2.
B27: (B) UIF Filing, Schedule B-3, page 2.

Sheet Property Tax Plant
D1: Docket No. 20200139-WS
D2: Exhibit ACC-3
D3: Schedule 21
D4: Page 1 of 1
B7: =+Summary!B7 -> UTILITIES, INC. OF FLORIDA - SEWER
B8: =+Summary!B8 -> TEST YEAR ENDING DECEMBER 31, 2019
B9: PROPERTY TAX EXPENSE - PLANT
A12: 1 | B12: Reductions to Net Plant | D12: =-('Rate Base'!D16+'Rate Base'!D20) -> 10613835 | E12: (A)
A14: 2 | B14: Net Mil Rate | D14: =367256/23440831 -> 0.01566736265 | E14: (B)
A16: 3 | B16: Recommended Adjustment | D16: =+D12*D14 -> 166290.802
A18: 4 | B18: Income Taxes @ | C18: =+'Income Tax'!D23 -> 0.2452182 | D18: =+Summary!A55*D16 -> 40777.53115
A20: 5 | B20: Operating Income Impact | D20: =+D16-D18 -> 125513.2709
B24: Sources:
B25: (A) Exhibit ACC-3, Schedule 2.
B26: (B) UIF Filing, Schedule B-3, page 5.

Sheet Prop Tax Used Useful
D1: Docket No. 20200139-WS
D2: Exhibit ACC-3
D3: Schedule 22
D4: Page 1 of 1
B7: =+Summary!B7 -> UTILITIES, INC. OF FLORIDA - SEWER
B8: =+Summary!B8 -> TEST YEAR ENDING DECEMBER 31, 2019
B9: PROPERTY TAX EXPENSE-USED AND USEFUL
A14: 1 | B14: Reductions to Net Plant | D14: =3510547-2113676 -> 1396871 | E14: (A)
A16: 2 | B16: Net Mil Rate | D16: =367256/23440831 -> 0.01566736265 | E16: (B)
A18: 3 | B18: Recommended Adjustment | D18: =+D14*D16 -> 21885.28453
A20: 4 | B20: Income Taxes @ | C20: =+'Property Tax Plant'!C18 -> 0.2452182 | D20: =+C20*D18 -> 5366.670078
A22: 5 | B22: Operating Income Impact | D22: =+D18-D20 -> 16518.61445
B26: Sources:
B27: (A) Plant in Service + Land - Accumulated Depreciation per
B28: UIF Filing, Schedule A-7 versus Interim Filing.
B29: (B) UIF Filing, Schedule 3-B, page 5.

Sheet EDIT
D1: Docket No. 20200139-WS
D2: Exhibit ACC-3
D3: Schedule 23
D4: Page 1 of 1
B7: =+Summary!B7 -> UTILITIES, INC. OF FLORIDA - SEWER
B8: =+Summary!B8 -> TEST YEAR ENDING DECEMBER 31, 2019
B9: EXCESS DEFERRED INCOME TAX AMORTIZATION
A13: 1 | B13: Unprotected Excess Deferred Income Taxes | D13: 360233 | E13: (A)
A15: 2 | B15: Recommended Amortization Period | D15: 5 | E15: (B)
A17: 3 | B17: Recommended Annual Amortization | D17: =+D13/D15 -> 72046.6
A19: 4 | B19: Annual Amortization of Protected EDIT | D19: 257797 | E19: (A)
A21: 5 | B21: Total Recommended Annual Amortization | D21: =+D17+D19 -> 329843.6
A23: 6 | B23: Allocation to Sewer (%) | D23: =1-+(13979/36023.3) -> 0.6119456019 | E23: (C)
A25: 7 | B25: Allocation to Sewer ($) | D25: =+D21*D23 -> 201846.3403
A27: 8 | B27: Impact on Operating Income at Present Rates | D27: =+D25 -> 201846.3403
B30: Sources:
B31: (A) UIF Filing, Schedule B-3, page 6.
B32: (B) Recommendation of Ms. Crane.
B33: (C) Based on allocation per UIF Filing, Schedule B-3, page 6.

Sheet SIT
D1: Docket No. 20200139-WS
D2: Exhibit ACC-3
D3: Schedule 24
D4: Page 1 of 1
B7: =+Summary!B7 -> UTILITIES, INC. OF FLORIDA - SEWER
B8: =+Summary!B8 -> TEST YEAR ENDING DECEMBER 31, 2019
B9: STATE INCOME TAX EXPENSE
A12: 1 | B12: State Taxable Income | D12: -48251 | E12: (A)
A14: 2 | B14: State Tax Rate | D14: 0.04458 | E14: (B)
A16: 3 | B16: State Income Taxes | D16: =+D12*D14 -> -2151.02958
A18: 4 | B18: Company Claim | D18: -2654 | E18: (A)
A20: 5 | B20: Recommended Adjustment | D20: =+D18-D16 -> -502.97042
A22: 6 | B22: Federal Income Taxes @ 21% | D22: =+D20*0.21 -> -105.6237882 | E22: (C)
A24: 7 | B24: Operating Income Impact | D24: =+D20-D22 -> -397.3466318
B28: Sources:
B29: (A) UIF Filing, Schedule C-2, page 2.
B30: (B) Current State Income Tax Rate.
B31: (C) Federal Income Tax Rate per UIF Filing, Schedule C-2, page 1.

Sheet Int Syn
D1: Docket No. 20200139-WS
D2: Exhibit ACC-3
D3: Schedule 25
D4: Page 1 of 1
B7: =+Summary!B7 -> UTILITIES, INC. OF FLORIDA - SEWER
B8: =+Summary!B8 -> TEST YEAR ENDING DECEMBER 31, 2019
B9: INTEREST SYNCHRONIZATION
A14: 1. | B14: Recommended Rate Base | D14: =+'Rate Base'!F26 -> 74394657 | E14: (A)
A16: 2. | B16: Weighted Interest Cost | D16: =+ROR!G19+ROR!G20 -> 0.0282145 | E16: (B)
A18: 3. | B18: Pro Forma Interest Expense | D18: =D14*D16 -> 2099008.05
A20: 4. | B20: Company Claim | D20: 2326861 | E20: (C)
A22: 5. | B22: Decrease to Pro Forma Interest Expense | D22: =+D18-D20 -> -227852.9501
A24: 6 | B24: Increase in Income Taxes @ | C24: =Summary!A55 -> 0.2452182 | D24: =+-C24*D22 -> 55873.69028
A26: 7 | B26: Decrease to Operating Income | D26: =-+D24 -> -55873.69028
B33: Sources:
B34: (A) Exhibit ACC-3, Schedule 3.
B35: (B) Exhibit ACC-3, Schedule 2.

Sheet Income Tax
D1: Docket No. 20200139-WS
D2: Exhibit ACC-3
D3: Schedule 26
D4: Page 1 of 1
B7: =+'Rate Base'!B7 -> UTILITIES, INC. OF FLORIDA - SEWER
B8: =+'Rate Base'!B8 -> TEST YEAR ENDING DECEMBER 31, 2019
B9: INCOME TAX RATE
A13: 1. | B13: Revenue | D13: 1
A15: 2 | B15: State Income Taxes @ | C15: 0.04458 | D15: =+C15 -> 0.04458 | E15: (A)
A17: 3 | B17: Federal Taxable Income | D17: =D13-D15 -> 0.95542
A19: 4 | B19: Income Taxes @ | C19: 0.21 | D19: =+C19*D17 -> 0.2006382 | E19: (A)
A21: 5 | B21: Operating Income | D21: =D17-D19 -> 0.7547818
A23: 6 | B23: Total Tax Rate | D23: =D19+D15 -> 0.2452182 | E23: (B)
B28: Sources:
B29: (A) Tax rates per Company Filing, Schedule C-2, page 1.
B30: (B) Line 1 - Line 5.

Sheet Rev Mul
D1: Docket No. 20200139-WS
D2: Exhibit ACC-3
D3: Schedule 27
D4: Page 1 of 1
B7: =+Summary!B7 -> UTILITIES, INC. OF FLORIDA - SEWER
B8: =+Summary!B8 -> TEST YEAR ENDING DECEMBER 31, 2019
B9: REVENUE MULTIPLIER
A13: 1. | B13: Revenue | D13: 1
A15: 2 | B15: Regulatory Assessment | D15: 0.045 | E15: (A)
A17: 3 | B17: Taxable Income | D17: =+D13-D15 -> 0.955
A19: 4 | B19: State Income Taxes @ | C19: =+'Income Tax'!C15 -> 0.04458 | D19: =+C19*D17 -> 0.0425739 | E19: (B)
A21: 4 | B21: Federal Taxable Income | D21: =D17-D19 -> 0.9124261
A23: 5 | B23: Income Taxes @ | C23: =+'Income Tax'!C19 -> 0.21 | D23: =+C23*D21 -> 0.191609481 | E23: (B)
A25: 6 | B25: Operating Income | D25: =D21-D23 -> 0.720816619
A27: 7 | B27: Revenue Multiplier | D27: =+D13/D25 -> 1.387315405 | E27: (C)
B30: Sources:
B31: (A) Rate per UIF Filing, Schedule B-3, page 5.
B32: (B) Tax rates per Company Filing, Schedule C-2, page 1.
B33: (C) Line 1 / Line 6.

Sheet RR Summary
D1: Docket No. 20200139-WS
D2: Exhibit ACC-3
D3: Schedule 28
D4: Page 1 of 1
B6: =+Summary!B7 -> UTILITIES, INC. OF FLORIDA - SEWER
B7: =+'Rev Mul'!B8 -> TEST YEAR ENDING DECEMBER 31, 2019
B8: REVENUE REQUIREMENT IMPACT OF ADJUSTMENTS
A12: 1 | B12: Capital Structure/Cost of Capital | D12: =(Summary!C16*Summary!D18*Summary!E26) -> -1448399.352
B14: Rate Base Adjustments:
A15: 2 | B15: =+'Rate Base'!B16 -> Utility Plant in Service | D15: =-Summary!$E$18*Summary!$E$26*+-('Rate Base'!D16) -> -664872.9108
A16: 3 | B16: Non-Used and Useful Plant | D16: =-Summary!$E$18*Summary!$E$26*+-('Rate Base'!D18) -> -143342.9745
A17: 4 | B17: =+'Rate Base'!B20 -> Accumulated Depreciation | D17: =-Summary!$E$18*Summary!$E$26*+-('Rate Base'!D20) -> -325479.9442
A18: 5 | B18: =+'Rate Base'!B21 -> Contributions in Aid of Construction | D18: =-Summary!$E$18*Summary!$E$26*+-('Rate Base'!D21) -> -39149.59099
A19: 6 | B19: =+'Rate Base'!B22 -> Accumulated Amortization of CIAC | D19: =-Summary!$E$18*Summary!$E$26*+-('Rate Base'!D22) -> 39149.59099
A20: 7 | B20: =+'Rate Base'!B24 -> Working Capital Allowance | D20: =-Summary!$E$18*Summary!$E$26*+-('Rate Base'!D24) -> -298813.4346
B22: Operating Income Adjustments
A23: 8 | B23: =+Income!B17 -> Salary and Wage Increase Expense | D23: =+Summary!$E$26*-Income!C17 -> -27749.12042
A24: 9 | B24: =+Income!B18 -> Additional Employees Expense | D24: =+Summary!$E$26*-Income!C18 -> -103248.1675
A25: 10 | B25: =+Income!B19 -> Severance Expense | D25: =+Summary!$E$26*-Income!C19 -> -28565.65445
A26: 11 | B26: =+Income!B20 -> Incentive Compensation Expense | D26: =+Summary!$E$26*-Income!C20 -> -99345.23213
A27: 12 | B27: =+Income!B21 -> Payroll Tax Expense | D27: =+Summary!$E$26*-Income!C21 -> -22332.08867
A28: 13 | B28: =+Income!B22 -> Non-Qualified Retirement Plan Expense | D28: =+Summary!$E$26*-Income!C22 -> -27481.9938
A29: 14 | B29: =+Income!B23 -> Truck Fleet Expense | D29: =+Summary!$E$26*-Income!C23 -> -6661.780105
A30: 15 | B30: =+Income!B24 -> Lobbying Expense | D30: =+Summary!$E$26*-Income!C24 -> -22966.28503
A31: 16 | B31: =+Income!B25 -> Holiday Party Expense | D31: =+Summary!$E$26*-Income!C25 -> -2545.350157
A32: 17 | B32: =+Income!B26 -> Depreciation Expense - Plant | D32: =+Summary!$E$26*-Income!C26 -> -365170.6806
A33: 18 | B33: =+Income!B27 -> Depreciation Expense - Non Used and Useful | D33: =+Summary!$E$26*-Income!C27 -> -80723.56021
A34: 19 | B34: =+Income!B28 -> Property Tax Expense - Plant | D34: =+Summary!$E$26*-Income!C28 -> -174126.4943
A35: 20 | B35: =+Income!B29 -> Property Tax Expense - Non Used and Useful | D35: =+Summary!$E$26*-Income!C29 -> -22916.5283
A36: 21 | B36: =+Income!B30 -> Excess Deferred Income Tax Amortization | D36: =+Summary!$E$26*-Income!C30 -> -280024.5375
A37: 22 | B37: =+Income!B31 -> State Income Tax Expense | D37: =+Summary!$E$26*-Income!C31 -> 551.2451036
A38: 23 | B38: =+Income!B32 -> Interest Synchronization | D38: =+Summary!$E$26*-Income!C32 -> 77514.43128
A39: 24 | B39: Revenue Multiplier | D39: =+(Summary!E26-Summary!C26)*Summary!C24 -> 115005.9802
A41: 25 | B41: Total Recommended Adjustments | D41: =SUM(D12:D40) -> -3951694.432
A43: 26 | B43: Company Claim | D43: =Summary!C28 -> 6529383
A45: 27 | B45: Recommended Revenue Requirement Deficiency | D45: =+D43+D41 -> 2577688.568
